bitfinex/quotes_BTCUSD_20251113
["timestamp","ask_amount","ask_price","bid_price","bid_amount"]
[1763056146166,0.74016166,100210.0,100200.0,0.00013967]
[1763056146369,0.33703181,100210.0,100200.0,0.00013967]
[1763056146822,0.33603181,100210.0,100200.0,0.00013967]
[1763056147049,0.39592931,100210.0,100200.0,0.00013967]
[1763056147259,0.38042892,100210.0,100200.0,0.00013967]
[1763056147480,0.32351892,100210.0,100200.0,0.00013967]
[1763056147710,0.22534977,100210.0,100200.0,0.00013967]
[1763056149031,0.22477977,100210.0,100200.0,0.19974046]
[1763056149258,0.22591977,100210.0,100200.0,0.00013967]
[1763056151465,0.22477977,100210.0,100200.0,0.26084046]
[1763056151664,0.22477977,100210.0,100200.0,0.14949967]
[1763056151898,0.22477977,100210.0,100200.0,0.34910046]
[1763056152051,0.02519889,100210.0,100200.0,0.66805632]
[1763056152258,0.22477977,100210.0,100200.0,0.66805632]
[1763056152621,0.22477977,100210.0,100200.0,0.86765711]
[1763056152988,0.01919889,100210.0,100200.0,0.34910046]
[1763056153190,0.02319889,100210.0,100200.0,1.00112753]
[1763056153379,0.22277977,100210.0,100200.0,0.80152674]
[1763056153573,0.22277977,100210.0,100200.0,0.00013967]
[1763056153574,0.28288977,100210.0,100200.0,0.00013967]
[1763056153780,0.59669088,100210.0,100200.0,0.00013967]
[1763056153955,1.59030584,100210.0,100200.0,1e-08]
[1763056154181,1.60879134,100210.0,100200.0,1e-08]
[1763056154962,1.60679134,100210.0,100200.0,1e-08]
[1763056155171,1.69480027,100210.0,100200.0,1e-08]
[1763056155410,0.21883953,100180.0,100170.0,0.005]
[1763056155629,0.24595953,100180.0,100170.0,0.00546577]
[1763056155823,0.30547953,100180.0,100170.0,0.00546577]
[1763056156460,0.68169848,100180.0,100170.0,0.00546577]
[1763056156672,1.35218408,100180.0,100170.0,0.00546577]
[1763056156874,1.35318408,100180.0,100170.0,0.00546577]
[1763056157306,0.68269848,100180.0,100170.0,0.00546577]
[1763056157501,0.68369848,100180.0,100170.0,0.00546577]
[1763056157708,1.33472555,100180.0,100170.0,0.00546577]
[1763056157981,0.70113964,100180.0,100170.0,0.00546577]
[1763056158154,0.69233943,100180.0,100170.0,0.00546577]
[1763056158365,0.67289827,100180.0,100170.0,0.00546577]
[1763056158546,0.67489827,100180.0,100170.0,0.00546577]
[1763056162065,1.32692534,100180.0,100170.0,0.00546577]
[1763056162257,1.34532105,100180.0,100170.0,0.00546577]
[1763056163106,1.34332105,100180.0,100170.0,0.00546577]
[1763056163309,1.23732521,100160.0,100150.0,0.00025494]
[1763056163510,1.33549436,100160.0,100150.0,0.00025494]
[1763056163712,0.74357729,100160.0,100150.0,0.00025494]
[1763056164531,0.74557729,100160.0,100150.0,0.00025494]
[1763056165502,0.74857729,100160.0,100150.0,0.00025494]
[1763056165705,0.42557729,100160.0,100150.0,0.00025494]
[1763056165958,0.32204855,100160.0,100150.0,0.24342538]
[1763056166127,0.32204855,100160.0,100150.0,0.30452538]
[1763056166335,0.32204855,100160.0,100150.0,0.04372494]
[1763056166766,0.2238794,100160.0,100150.0,0.24342538]
[1763056166938,0.2238794,100160.0,100150.0,0.95655245]
[1763056167139,0.2238794,100160.0,100150.0,1.04481245]
[1763056167339,0.2238794,100160.0,100150.0,0.19308494]
[1763056167816,0.2238794,100160.0,100150.0,0.04372494]
[1763056167982,0.2238794,100160.0,100150.0,0.10482494]
[1763056168501,0.2839894,100160.0,100150.0,0.00025494]
[1763056168706,0.2238794,100160.0,100150.0,0.00025494]
[1763056168908,0.2238794,100160.0,100150.0,0.06135494]
[1763056169240,0.2238794,100160.0,100150.0,0.00025494]
[1763056169440,0.2845794,100160.0,100150.0,0.00025494]
[1763056169934,0.6075794,100160.0,100150.0,0.00025494]
[1763056170336,0.6063894,100160.0,100150.0,0.00025494]
[1763056170558,0.6075794,100160.0,100150.0,0.00025494]
[1763056171769,0.65099814,100160.0,100150.0,0.00025494]
[1763056172216,1.30302521,100160.0,100150.0,0.00025494]
[1763056172373,0.65099814,100160.0,100150.0,0.00025494]
[1763056172568,1.30302521,100160.0,100150.0,0.00025494]
[1763056172997,1.30302521,100160.0,100150.0,1e-08]
[1763056173540,1.33303317,100160.0,100150.0,1e-08]
[1763056173902,0.6810061,100160.0,100150.0,1e-08]
[1763056174362,0.65099814,100160.0,100150.0,1e-08]
[1763056175116,1.30302521,100160.0,100150.0,1e-08]
[1763056175801,0.65099814,100160.0,100150.0,1e-08]
[1763056176446,1.32140781,100160.0,100150.0,1e-08]
[1763056176639,0.65099814,100160.0,100150.0,1e-08]
[1763056176978,0.66937715,100160.0,100150.0,1e-08]
[1763056180060,0.30176841,100160.0,100150.0,1e-08]
[1763056180617,0.30295841,100160.0,100150.0,1e-08]
[1763056181601,0.24225841,100160.0,100150.0,0.75410708]
[1763056181924,0.24225841,100160.0,100150.0,0.10208001]
[1763056182767,0.24225841,100160.0,100150.0,1e-08]
[1763056182768,0.30294841,100160.0,100150.0,1e-08]
[1763056183417,0.32416932,100160.0,100150.0,1e-08]
[1763056184440,0.32183932,100160.0,100150.0,1e-08]
[1763056184841,0.26347932,100160.0,100150.0,0.06076001]
[1763056185040,0.26347932,100160.0,100150.0,0.80154708]
[1763056185247,0.26350531,100160.0,100150.0,0.14952001]
[1763056185489,0.0638248,100160.0,100150.0,1.00124752]
[1763056185725,0.24225841,100160.0,100150.0,1.00124752]
[1763056186137,0.0425779,100160.0,100150.0,1.00124752]
[1763056186350,0.0425779,100160.0,100150.0,0.34922045]
[1763056186556,0.02137901,100160.0,100150.0,1.00124752]
[1763056186763,0.21905952,100160.0,100150.0,0.80154708]
[1763056186994,0.23925841,100160.0,100150.0,1.00124752]
[1763056187419,0.23925841,100160.0,100150.0,0.14952001]
[1763056187624,0.23725841,100160.0,100150.0,1.00124752]
[1763056187793,0.0385779,100160.0,100150.0,1.00124752]
[1763056187996,0.23825841,100160.0,100150.0,1.00124752]
[1763056188196,0.23825841,100160.0,100150.0,0.80154708]
[1763056188401,0.23825841,100160.0,100150.0,0.14952001]
[1763056188564,0.23825841,100160.0,100150.0,0.80154708]
[1763056189097,0.23825841,100160.0,100150.0,0.14952001]
[1763056189300,0.0385779,100160.0,100150.0,1.00124752]
[1763056189472,0.23825841,100160.0,100150.0,1.00124752]
[1763056189870,0.0385779,100160.0,100150.0,1.00124752]
[1763056190417,0.23825841,100160.0,100150.0,1.00124752]
[1763056190708,0.0385779,100160.0,100150.0,1.00124752]
[1763056191481,0.01937901,100160.0,100150.0,1.00124752]
[1763056191689,0.01937901,100160.0,100150.0,1.07135883]
[1763056191873,0.01937901,100160.0,100150.0,1.32424752]
[1763056192402,0.001,100160.0,100150.0,1.32424752]
[1763056192760,0.001,100160.0,100150.0,0.67222045]
[1763056192966,0.24011903,100180.0,100160.0,0.19967136]
[1763056192967,0.01919889,100170.0,100160.0,0.19967136]
[1763056193217,0.0376675,100170.0,100160.0,0.94045843]
[1763056193411,0.2188794,100160.0,100150.0,0.04132001]
[1763056193580,0.23734801,100160.0,100150.0,0.98180412]
[1763056193782,0.23734801,100160.0,100150.0,1.04256412]
[1763056194017,0.23734801,100160.0,100150.0,0.39053705]
[1763056194186,0.23734801,100160.0,100150.0,1.04256752]
[1763056194386,0.23734801,100160.0,100150.0,0.84286708]
[1763056194637,0.0376675,100160.0,100150.0,1.04256752]
[1763056195585,0.23734801,100160.0,100150.0,1.04256752]
[1763056196051,0.23734801,100160.0,100150.0,0.19084001]
[1763056196367,0.20974033,100130.0,100120.0,0.04132]
[1763056196564,0.20976028,100120.0,100110.0,0.04347]
[1763056196776,0.20976028,100120.0,100110.0,0.1322766]
[1763056196998,0.20976028,100120.0,100110.0,0.8480329]
[1763056197168,0.20976028,100120.0,100110.0,0.19600583]
[1763056198591,0.01,100120.0,100110.0,0.39578607]
[1763056198798,0.20976028,100120.0,100110.0,0.39578607]
[1763056199658,0.20976028,100120.0,100110.0,0.39678607]
[1763056200295,0.20976028,100120.0,100110.0,0.8490329]
[1763056200529,0.01,100120.0,100110.0,1.04881314]
[1763056200744,0.20976028,100120.0,100110.0,1.04881314]
[1763056201001,0.01,100120.0,100110.0,1.04881314]
[1763056201232,0.19974033,100130.0,100120.0,0.19976028]
[1763056201431,0.21893922,100130.0,100120.0,0.13208]
[1763056201976,0.19976028,100120.0,100110.0,0.0445166]
[1763056202176,0.21895917,100120.0,100110.0,0.32237684]
[1763056202401,0.01,100130.0,100120.0,0.19976028]
[1763056202586,0.21893922,100130.0,100120.0,0.33284028]
[1763056202785,0.21893922,100130.0,100120.0,0.98486735]
[1763056203034,0.21893922,100130.0,100120.0,0.98386735]
[1763056203231,0.21893922,100130.0,100120.0,0.13208]
[1763056203548,0.21893922,100130.0,100120.0,0.78410707]
[1763056203753,0.21893922,100130.0,100120.0,0.98386735]
[1763056204600,0.21893922,100130.0,100120.0,0.78410707]
[1763056204799,0.21893922,100130.0,100120.0,0.13208]
[1763056205001,0.21893922,100130.0,100120.0,0.053]
[1763056205548,0.21893922,100130.0,100120.0,0.054]
[1763056206496,0.27283922,100130.0,100120.0,0.001]
[1763056206712,0.27283922,100130.0,100120.0,0.00371402]
[1763056206713,1.08698418,100130.0,100120.0,0.00371402]
[1763056206914,1.43831139,100130.0,100120.0,0.00371402]
[1763056208692,0.78628432,100130.0,100120.0,0.00371402]
[1763056208964,1.43931139,100130.0,100120.0,0.00271402]
[1763056209387,1.44031139,100130.0,100120.0,1e-08]
[1763056209869,1.43931139,100130.0,100120.0,1e-08]
[1763056210118,1.44131139,100130.0,100120.0,1e-08]
[1763056211015,1.43143467,100130.0,100120.0,1e-08]
[1763056211255,0.7794076,100130.0,100120.0,1e-08]
[1763056211477,0.76095711,100130.0,100120.0,1e-08]
[1763056211707,0.43795711,100130.0,100120.0,1e-08]
[1763056212154,0.76095711,100130.0,100120.0,1e-08]
[1763056213254,0.64310837,100130.0,100120.0,1e-08]
[1763056213459,0.66061837,100130.0,100120.0,1e-08]
[1763056213748,0.33761837,100130.0,100120.0,1e-08]
[1763056214003,0.22193922,100130.0,100120.0,0.33126029]
[1763056214252,0.02219889,100130.0,100120.0,0.98328736]
[1763056214505,0.22193922,100130.0,100120.0,0.33126029]
[1763056214743,0.22193922,100130.0,100120.0,0.13150001]
[1763056214976,0.21893922,100130.0,100120.0,0.33126029]
[1763056215212,0.21993922,100130.0,100120.0,0.13150001]
[1763056215700,0.21993922,100130.0,100120.0,0.05284001]
[1763056215933,0.21943903,100130.0,100120.0,0.05284001]
[1763056216169,0.61686903,100130.0,100120.0,1e-08]
[1763056216421,0.71503818,100130.0,100120.0,1e-08]
[1763056217326,0.69450818,100130.0,100120.0,1e-08]
[1763056218017,0.71503818,100130.0,100120.0,1e-08]
[1763056218469,0.69450818,100130.0,100120.0,1e-08]
[1763056219874,0.71503818,100130.0,100120.0,1e-08]
[1763056220286,0.69450818,100130.0,100120.0,1e-08]
[1763056220493,0.71503818,100130.0,100120.0,1e-08]
[1763056220704,1.27797995,100130.0,100120.0,1e-08]
[1763056221707,0.58541782,100100.0,100090.0,0.0004]
[1763056221951,1.17919085,100100.0,100090.0,0.0004]
[1763056222360,1.17919085,100100.0,100090.0,0.0011654]
[1763056222598,1.27736,100100.0,100090.0,0.0011654]
[1763056223416,0.92258488,100100.0,100090.0,0.0011654]
[1763056223649,1.12238507,100100.0,100090.0,0.0011654]
[1763056224127,0.60286204,100100.0,100090.0,0.0011654]
[1763056224342,1.12238507,100100.0,100090.0,1e-08]
[1763056224556,1.20631529,100100.0,100090.0,1e-08]
[1763056224780,0.67679227,100100.0,100090.0,1e-08]
[1763056225040,1.20731529,100100.0,100090.0,1e-08]
[1763056225264,0.68779226,100100.0,100090.0,1e-08]
[1763056225484,1.16580381,100100.0,100090.0,1e-08]
[1763056225699,1.16580381,100100.0,100080.0,0.0004]
[1763056225700,0.8424989,100090.0,100080.0,1e-08]
[1763056225911,3.36202193,100090.0,100080.0,1e-08]
[1763056226136,2.89169778,100090.0,100080.0,1e-08]
[1763056226609,0.74205898,100070.0,100060.0,0.0002]
[1763056226818,0.56106851,100070.0,100060.0,0.0002]
[1763056227028,0.61811851,100070.0,100060.0,0.0002]
[1763056227240,0.82839047,100070.0,100060.0,0.0002]
[1763056227648,0.82839047,100070.0,100040.0,0.0004]
[1763056227649,0.19990004,100050.0,100040.0,0.0004]
[1763056227867,0.55881893,100050.0,100040.0,0.0004]
[1763056228079,0.61586893,100050.0,100040.0,0.0004]
[1763056228500,0.834296,100050.0,100040.0,0.0004]
[1763056228736,1.35381903,100050.0,100040.0,0.0004]
[1763056228964,1.15381903,100050.0,100040.0,0.0004]
[1763056229205,0.634296,100050.0,100040.0,0.0004]
[1763056229418,0.6342685,100050.0,100040.0,0.0004]
[1763056229631,0.73243765,100050.0,100040.0,0.0004]
[1763056229837,1.25196068,100050.0,100040.0,0.0004]
[1763056230376,1.45196068,100050.0,100040.0,0.0004]
[1763056230591,1.45196068,100050.0,100030.0,0.0002]
[1763056230592,0.21911892,100040.0,100030.0,0.0002]
[1763056230798,0.81723152,100040.0,100030.0,0.0002]
[1763056230997,0.29770849,100040.0,100030.0,0.0002]
[1763056231665,0.62070849,100040.0,100030.0,0.0002]
[1763056231879,1.14023152,100040.0,100030.0,0.0002]
[1763056232212,1.14023152,100040.0,100030.0,0.00173196]
[1763056232418,0.62070849,100040.0,100030.0,0.00173196]
[1763056232954,1.14023152,100040.0,100030.0,0.00173196]
[1763056233828,0.94031149,100040.0,100030.0,0.00173196]
[1763056234028,0.62070849,100040.0,100030.0,0.00173196]
[1763056234236,1.14023152,100040.0,100030.0,0.00173196]
[1763056234429,0.62070849,100040.0,100030.0,0.00173196]
[1763056234634,1.14023152,100040.0,100030.0,0.00173196]
[1763056235084,0.63414849,100040.0,100030.0,0.00173196]
[1763056235330,0.5421389,100030.0,100020.0,0.0002]
[1763056235533,1.47916065,100030.0,100020.0,0.0002]
[1763056235688,1.51134065,100030.0,100020.0,0.0002]
[1763056236304,0.79181762,100030.0,100020.0,0.0002]
[1763056236575,1.31134065,100030.0,100020.0,0.00066571]
[1763056237792,1.51134065,100030.0,100020.0,0.00066571]
[1763056238831,1.55475939,100030.0,100020.0,0.00066571]
[1763056239378,1.03523636,100030.0,100020.0,0.00066571]
[1763056239585,1.55475939,100030.0,100020.0,0.00066571]
[1763056240031,1.10510066,100020.0,100010.0,0.0004]
[1763056240256,1.25743526,100020.0,100010.0,0.0004]
[1763056242585,0.69449349,100020.0,100010.0,0.0004]
[1763056242784,1.21401652,100020.0,100010.0,0.0004]
[1763056243165,1.21401652,100020.0,100010.0,0.00091091]
[1763056243808,1.21401652,100020.0,100000.0,24.38711824]
[1763056244041,1.47415107,100010.0,100000.0,24.38711824]
[1763056244288,0.77302761,100010.0,100000.0,24.38711824]
[1763056244536,0.39278761,100010.0,100000.0,24.38711824]
[1763056244776,0.36426761,100010.0,100000.0,24.38711824]
[1763056245001,0.36426761,100010.0,100000.0,24.99064127]
[1763056245002,0.03759846,100010.0,100000.0,24.99064127]
[1763056245215,0.03759846,100010.0,100000.0,25.19064127]
[1763056245419,0.23757846,100010.0,100000.0,24.38711824]
[1763056245652,0.03759846,100010.0,100000.0,24.47111824]
[1763056245859,0.03759846,100010.0,100000.0,24.99064127]
[1763056246860,0.03759846,100010.0,100000.0,25.8331643]
[1763056247083,0.00046503,100020.0,100010.0,0.56639874]
[1763056247436,0.22840007,100060.0,100040.0,0.19992003]
[1763056247654,0.22840007,100060.0,100050.0,0.05668]
[1763056247863,0.24759896,100060.0,100050.0,0.05668]
[1763056248084,0.19990004,100050.0,100040.0,0.64350515]
[1763056248293,0.21911892,100040.0,100030.0,0.19993832]
[1763056248515,0.19992003,100040.0,100020.0,0.80348303]
[1763056248725,0.2191389,100030.0,100020.0,0.60352303]
[1763056248925,0.22846001,100030.0,100020.0,0.51952303]
[1763056249137,0.2476589,100030.0,100020.0,0.66020303]
[1763056249358,0.2476589,100030.0,100020.0,0.05668]
[1763056249571,0.21915889,100020.0,100010.0,0.60352303]
[1763056249789,0.21915889,100020.0,100000.0,24.67137178]
[1763056249790,0.01919889,100010.0,100000.0,24.67137178]
[1763056249996,0.01919889,100010.0,100000.0,24.9913618]
[1763056250679,0.01919889,100010.0,100000.0,25.01911997]
[1763056251111,0.01,100020.0,100010.0,0.19998]
[1763056251328,0.68811419,100050.0,100030.0,0.19993042]
[1763056251546,0.01,100040.0,100030.0,0.77613345]
[1763056251753,0.01,100040.0,100030.0,0.05668]
[1763056252010,0.2191389,100030.0,100020.0,0.084]
[1763056252281,0.2191389,100030.0,100020.0,0.28396]
[1763056252500,0.2475689,100030.0,100020.0,0.34064]
[1763056252708,0.2475689,100030.0,100020.0,0.14068]
[1763056252916,0.2191389,100030.0,100020.0,0.86016303]
[1763056253108,0.2476589,100030.0,100020.0,0.05668]
[1763056253313,0.21915889,100020.0,100010.0,0.81550203]
[1763056253587,0.21915889,100020.0,100010.0,0.81364143]
[1763056253789,0.21915889,100020.0,100010.0,0.0001394]
[1763056254230,0.21915889,100020.0,100010.0,0.0568194]
[1763056254443,0.22015889,100020.0,100010.0,0.1408194]
[1763056254701,0.22015889,100020.0,100010.0,0.36152865]
[1763056254702,0.02019889,100020.0,100010.0,0.36152865]
[1763056254907,0.22015889,100020.0,100010.0,0.1408194]
[1763056255119,0.02019889,100020.0,100010.0,0.3407994]
[1763056255340,0.22015889,100020.0,100010.0,0.1408194]
[1763056255567,0.01919889,100020.0,100010.0,0.3417994]
[1763056255807,0.21915889,100020.0,100010.0,0.2577994]
[1763056256022,0.21915889,100020.0,100010.0,0.0578194]
[1763056256232,0.21915889,100020.0,100010.0,0.1418194]
[1763056256663,0.21915889,100020.0,100010.0,0.0578194]
[1763056256869,0.21915889,100020.0,100010.0,0.2577994]
[1763056257114,0.21915889,100020.0,100010.0,0.0568194]
[1763056257331,0.21915889,100020.0,100010.0,0.0578194]
[1763056257779,0.21915889,100020.0,100010.0,0.0568194]
[1763056258196,0.21915889,100020.0,100010.0,0.0578194]
[1763056258405,0.24046614,100020.0,100010.0,0.0578194]
[1763056258617,0.0050606,100010.0,100000.0,24.67137294]
[1763056258818,0.22437892,100010.0,100000.0,24.67137294]
[1763056259038,0.22437892,100010.0,100000.0,24.47137374]
[1763056259235,0.24287589,100010.0,100000.0,24.38737374]
[1763056260117,0.29036486,100010.0,100000.0,24.38737374]
[1763056260368,0.31654486,100010.0,100000.0,24.38737374]
[1763056261280,0.41471401,100010.0,100000.0,24.38737374]
[1763056261504,0.46707401,100010.0,100000.0,24.38737374]
[1763056261726,0.38853401,100010.0,100000.0,24.38837374]
[1763056261940,0.98659704,100010.0,100000.0,24.38837374]
[1763056262154,1.01526704,100010.0,100000.0,24.38837374]
[1763056262374,1.33826704,100010.0,100000.0,24.38837374]
[1763056262595,1.58168578,100010.0,100000.0,24.38837374]
[1763056262816,1.61797201,100010.0,100000.0,24.38837374]
[1763056262995,1.41797201,100010.0,100000.0,24.38837374]
[1763056263243,1.39161747,100010.0,100000.0,24.38837374]
[1763056263449,1.39161747,100010.0,100000.0,24.38737374]
[1763056263943,1.41797201,100010.0,100000.0,24.38086314]
[1763056264152,1.43797199,100010.0,100000.0,24.38086314]
[1763056264365,3.43797199,100010.0,100000.0,24.38086314]
[1763056264826,3.628972,100010.0,100000.0,24.38086314]
[1763056265061,3.63897199,100010.0,100000.0,24.38086314]
[1763056265277,3.63797199,100010.0,100000.0,24.38086314]
[1763056265487,3.63997199,100010.0,100000.0,24.38086314]
[1763056265710,3.629972,100010.0,100000.0,24.38086314]
[1763056265924,3.63997199,100010.0,100000.0,24.38086314]
[1763056266207,3.630972,100010.0,100000.0,24.38086314]
[1763056266416,4.15310111,100010.0,100000.0,23.90155926]
[1763056266634,4.15310111,100010.0,100000.0,23.65204036]
[1763056266635,4.16868811,100010.0,100000.0,23.65204036]
[1763056266864,3.66092513,100010.0,100000.0,23.65204036]
[1763056267082,3.83292514,100010.0,100000.0,23.65204036]
[1763056267338,3.62292515,100010.0,100000.0,23.65204036]
[1763056267562,3.5925781,100010.0,100000.0,23.65204036]
[1763056267769,1.07305507,100010.0,100000.0,23.65204036]
[1763056267991,1.5945781,100010.0,100000.0,23.65204036]
[1763056268201,1.07505507,100010.0,100000.0,23.65204036]
[1763056268420,1.5925781,100010.0,100000.0,23.65204036]
[1763056268662,1.5945781,100010.0,100000.0,23.65204036]
[1763056268874,1.5935781,100010.0,100000.0,23.65204036]
[1763056269081,1.5945781,100010.0,100000.0,23.65204036]
[1763056269318,3.62457809,100010.0,100000.0,23.65204036]
[1763056269534,3.62357809,100010.0,100000.0,23.65204036]
[1763056269751,1.5925781,100010.0,100000.0,23.65204036]
[1763056269997,1.05964641,100010.0,100000.0,23.65204036]
[1763056270207,1.00902878,100010.0,100000.0,23.65204036]
[1763056270418,0.98775918,100010.0,100000.0,23.65204036]
[1763056270636,0.98575918,100010.0,100000.0,23.65204036]
[1763056271066,0.46823615,100010.0,100000.0,23.65204036]
[1763056271278,0.36102615,100010.0,100000.0,23.65204036]
[1763056271510,0.34204504,100010.0,100000.0,23.65204036]
[1763056271720,0.14106504,100010.0,100000.0,23.65204036]
[1763056271940,0.34304504,100010.0,100000.0,23.65204036]
[1763056272144,0.24487589,100010.0,100000.0,23.65204036]
[1763056272363,0.04489589,100010.0,100000.0,24.24723339]
[1763056272581,0.24487589,100010.0,100000.0,24.24723339]
[1763056272817,0.24487589,100010.0,100000.0,23.72771036]
[1763056273037,0.24287589,100010.0,100000.0,23.72721036]
[1763056273251,0.04289589,100010.0,100000.0,23.72721036]
[1763056273459,0.04289589,100010.0,100000.0,24.24673339]
[1763056273940,0.04289589,100010.0,100000.0,24.34521675]
[1763056274159,0.04289589,100010.0,100000.0,23.72821036]
[1763056274375,0.04289589,100010.0,100000.0,24.24773339]
[1763056274588,0.24287589,100010.0,100000.0,23.72721036]
[1763056275454,0.24287589,100010.0,100000.0,23.72821036]
[1763056276100,0.24287589,100010.0,100000.0,23.65254036]
[1763056276571,0.29315589,100010.0,100000.0,23.65254036]
[1763056276782,0.34342589,100010.0,100000.0,23.65254036]
[1763056277007,0.34342589,100010.0,100000.0,23.65154036]
[1763056277223,0.34342589,100010.0,100000.0,23.65254036]
[1763056277437,0.37621589,100010.0,100000.0,23.65254036]
[1763056277664,0.79738504,100010.0,100000.0,23.65254036]
[1763056277880,1.47346102,100010.0,100000.0,23.65154036]
[1763056278306,0.71432504,100010.0,100000.0,23.62150312]
[1763056278530,0.68918504,100010.0,100000.0,23.62150312]
[1763056278753,0.79738504,100010.0,100000.0,23.62150312]
[1763056279169,1.49563208,100010.0,100000.0,23.62150312]
[1763056279380,1.49558612,100010.0,100000.0,23.62150312]
[1763056280019,1.71683498,100010.0,100000.0,23.62150312]
[1763056280498,1.72683497,100010.0,100000.0,23.62150312]
[1763056280706,3.74683497,100010.0,100000.0,23.62150312]
[1763056280922,3.75783496,100010.0,100000.0,23.16507259]
[1763056281617,3.75783496,100010.0,100000.0,22.71283765]
[1763056281851,3.78618201,100010.0,100000.0,22.71283765]
[1763056282085,3.08300666,100010.0,100000.0,22.71283765]
[1763056282333,1.06300668,100010.0,100000.0,22.71283765]
[1763056282597,3.70558611,100010.0,100000.0,22.71283765]
[1763056282806,3.74983328,100010.0,100000.0,22.71283765]
[1763056283016,3.7781796,100010.0,100000.0,22.01510653]
[1763056283230,3.78517959,100010.0,100000.0,22.01510653]
[1763056283472,3.9761796,100010.0,100000.0,22.01510653]
[1763056283694,3.93983254,100010.0,100000.0,22.01510653]
[1763056284206,3.94783254,100010.0,100000.0,22.01510653]
[1763056284469,3.93983255,100010.0,100000.0,22.01510653]
[1763056284676,3.94883254,100010.0,100000.0,22.01510653]
[1763056284903,3.92883255,100010.0,100000.0,22.01510653]
[1763056285115,3.93983254,100010.0,100000.0,22.01510653]
[1763056285531,3.95983254,100010.0,100000.0,22.01510653]
[1763056285742,3.9185861,100010.0,100000.0,22.01510653]
[1763056285959,1.43596849,100010.0,100000.0,22.01510653]
[1763056286191,0.43535019,100010.0,100000.0,22.01510653]
[1763056286451,0.35068807,100010.0,100000.0,22.01510653]
[1763056286889,0.34868807,100010.0,100000.0,22.01510653]
[1763056287101,0.67368807,100010.0,100000.0,22.01510653]
[1763056287319,0.35068807,100010.0,100000.0,18.01510653]
[1763056287544,0.22737892,100010.0,100000.0,18.01510653]
[1763056287774,0.22637892,100010.0,100000.0,14.01510653]
[1763056287977,0.22637892,100010.0,100000.0,14.09077653]
[1763056287978,0.02639892,100010.0,100000.0,14.09077653]
[1763056288190,0.22737892,100010.0,100000.0,14.09077653]
[1763056288399,0.22637892,100010.0,100000.0,14.09077653]
[1763056288608,0.24951892,100010.0,100000.0,14.01510653]
[1763056288823,0.24951892,100010.0,100000.0,10.01510653]
[1763056289267,0.68051892,100010.0,100000.0,10.01510653]
[1763056289442,0.77868807,100010.0,100000.0,6.01510653]
[1763056289646,0.79763299,100010.0,100000.0,6.01610653]
[1763056289977,1.45246129,100010.0,100000.0,6.01610653]
[1763056290185,0.79763299,100010.0,100000.0,6.01510653]
[1763056290705,0.79763299,100010.0,100000.0,6.01610653]
[1763056290984,0.74503299,100010.0,100000.0,6.01610653]
[1763056291251,0.71812299,100010.0,100000.0,6.01610653]
[1763056291516,0.69088299,100010.0,100000.0,6.01610653]
[1763056291782,0.69088299,100010.0,100000.0,6.01510653]
[1763056291783,1.45247112,100010.0,100000.0,6.01510653]
[1763056292046,0.61876367,100010.0,100000.0,6.01510653]
[1763056292297,0.05130892,100010.0,100000.0,6.01510653]
[1763056292546,0.02439892,100010.0,100000.0,6.82802483]
[1763056292789,0.00520003,100010.0,100000.0,6.17319653]
[1763056293064,0.02439892,100010.0,100000.0,6.17319653]
[1763056293578,0.02439892,100010.0,100000.0,6.17419653]
[1763056293796,0.02439892,100010.0,100000.0,6.82902483]
[1763056294008,0.02439892,100010.0,100000.0,6.17419653]
[1763056294218,0.02439892,100010.0,100000.0,6.82902483]
[1763056294459,0.00520003,100010.0,100000.0,6.92750819]
[1763056294693,0.00520003,100010.0,100000.0,6.92650773]
[1763056295150,0.00520003,100010.0,100000.0,6.92750773]
[1763056295412,0.00520003,100010.0,100000.0,6.27267943]
[1763056295644,0.02439892,100010.0,100000.0,6.82802437]
[1763056295883,0.02439892,100010.0,100000.0,6.17419607]
[1763056296117,0.22437892,100010.0,100000.0,6.17419607]
[1763056296346,0.25128892,100010.0,100000.0,6.07784607]
[1763056296567,0.35723892,100010.0,100000.0,6.01510607]
[1763056296798,0.45721807,100010.0,100000.0,6.01610607]
[1763056297014,1.43504637,100010.0,100000.0,6.01610607]
[1763056297241,1.45346131,100010.0,100000.0,6.01610607]
[1763056297466,0.79963301,100010.0,100000.0,6.01610607]
[1763056297693,0.79863301,100010.0,100000.0,6.01610607]
[1763056297965,1.45246131,100010.0,100000.0,6.01510607]
[1763056298202,1.45246131,100010.0,100000.0,6.01710607]
[1763056298657,0.79763301,100010.0,100000.0,6.01510607]
[1763056298879,1.45246131,100010.0,100000.0,6.01510607]
[1763056299091,1.49788005,100010.0,100000.0,6.01510607]
[1763056299278,1.48868116,100010.0,100000.0,6.01510607]
[1763056299535,1.48668116,100010.0,100000.0,6.01510607]
[1763056299956,1.50988073,100010.0,100000.0,6.01510607]
[1763056300394,1.48868116,100010.0,100000.0,6.01510607]
[1763056300627,0.8550507,100010.0,100000.0,6.01510607]
[1763056300863,0.42374301,100010.0,100000.0,6.01510607]
[1763056301138,0.69615412,100010.0,100000.0,6.01510607]
[1763056301355,0.69515412,100010.0,100000.0,6.01510607]
[1763056301583,0.69715412,100010.0,100000.0,6.01510607]
[1763056301845,0.69815412,100010.0,100000.0,6.01510607]
[1763056302075,0.69515412,100010.0,100000.0,6.01510607]
[1763056302302,0.33376412,100010.0,100000.0,6.01510607]
[1763056302792,0.37215412,100010.0,100000.0,6.01510607]
[1763056303013,0.41254412,100010.0,100000.0,6.01510607]
[1763056303641,0.46491412,100010.0,100000.0,6.01510607]
[1763056303860,0.41254412,100010.0,100000.0,6.01510607]
[1763056304300,0.46543412,100010.0,100000.0,6.01510607]
[1763056304504,0.41254412,100010.0,100000.0,6.01510607]
[1763056304920,0.46491412,100010.0,100000.0,6.01510607]
[1763056305126,1.44326242,100010.0,100000.0,6.01510607]
[1763056306165,1.36369074,100010.0,100000.0,6.01510607]
[1763056306370,1.38288963,100010.0,100000.0,6.01510607]
[1763056306779,1.42430837,100010.0,100000.0,6.01510607]
[1763056306994,3.63033722,100010.0,100000.0,4.14661964]
[1763056307204,3.72562473,100010.0,100000.0,3.52654895]
[1763056307411,3.89615743,100010.0,100000.0,3.23322622]
[1763056307625,3.89515743,100010.0,100000.0,2.99691987]
[1763056307828,3.89515743,100010.0,100000.0,2.83619472]
[1763056308038,3.89615743,100010.0,100000.0,2.58918041]
[1763056308251,3.89615743,100010.0,100000.0,2.35037768]
[1763056308472,3.90318828,100010.0,100000.0,2.07867794]
[1763056308682,3.90618828,100010.0,100000.0,1.89389641]
[1763056308896,3.92687664,100010.0,100000.0,1.68964964]
[1763056309099,3.92687664,100010.0,100000.0,1.57720885]
[1763056309311,2.78042961,100010.0,100000.0,1.3077109]
[1763056309535,3.3520116,100010.0,100000.0,1.27765078]
[1763056309743,3.32773499,100010.0,100000.0,1.27765078]
[1763056309956,2.44595579,100010.0,100000.0,1.27765078]
[1763056310168,3.28370698,100010.0,100000.0,1.27765078]
[1763056310387,3.30370698,100010.0,100000.0,1.27765078]
[1763056310617,3.30370698,100010.0,100000.0,0.70974091]